bitfinex-derivatives/quotes_SOLF0:USTF0_20250114
["timestamp","ask_amount","ask_price","bid_price","bid_amount"]
[1736829542115,2.7036,185.02,184.97,10.79900391]
[1736829542316,2.7036,185.02,184.99,8.09480391]
[1736829544022,8.09480391,185.04,184.99,8.09480391]
[1736829544223,2.7038,185.01,184.99,8.09480391]
[1736829550029,2.7035,185.03,184.99,8.09480391]
[1736829550235,2.7035,185.03,185.02,8.09480391]
[1736829550927,191.0,185.08,185.02,8.09480391]
[1736829551133,2.7033,185.04,185.02,8.09480391]
[1736829551936,5.11044213,185.08,185.02,8.09480391]
[1736829552430,13.20524604,185.09,185.02,8.09480391]
[1736829553835,2.7034,185.04,185.02,8.09480391]
[1736829557339,5.11044213,185.09,185.02,8.09480391]
[1736829557541,2.7032,185.05,185.01,2.7037]
[1736829558739,2.7027,185.09,185.04,8.09480391]
[1736829558938,8.44624213,185.1,185.06,8.09480391]
[1736829559130,5.11044213,185.1,185.06,8.09480391]
[1736829559330,8.09480391,185.12,185.06,8.09480391]
[1736829559842,2.7028,185.08,185.06,8.09480391]
[1736829561131,20.28527398,185.14,185.06,8.09480391]
[1736829561336,20.28527398,185.14,185.09,8.09480391]
[1736829561540,15.18140391,185.14,185.09,8.09480391]
[1736829562137,2.7025,185.1,185.09,8.09480391]
[1736829566862,9.72140391,185.14,185.05,2.7031]
[1736829567153,2.7026,185.09,185.08,8.09480391]
[1736829567554,8.09480391,185.12,185.06,8.09480391]
[1736829567849,2.7029,185.07,185.06,8.09480391]
[1736829568756,2.7029,185.07,184.99,4.8725]
[1736829568757,8.09480391,185.08,184.99,4.8725]
[1736829569054,8.09480391,185.08,185.02,8.09480391]
[1736829569254,1.6266,185.14,185.02,8.09480391]
[1736829569454,8.09480391,185.09,185.02,8.09480391]
[1736829569653,2.7033,185.05,185.02,8.09480391]
[1736829569959,8.09480391,185.09,185.02,8.09480391]
[1736829571059,2.7033,185.04,185.02,8.09480391]
[1736829573460,8.09480391,185.09,185.02,8.09480391]
[1736829573660,8.09480391,185.07,184.92,92.74]
[1736829573857,8.09480391,185.05,184.99,8.09480391]
[1736829574662,8.09480391,185.05,184.98,8.09480391]
[1736829575065,2.704,185.0,184.98,8.09480391]
[1736829585463,2.7035,185.03,184.98,8.09480391]
[1736829585669,2.7035,185.03,185.02,8.09480391]
[1736829586873,2.7033,185.04,185.02,8.09480391]
[1736829587070,4.9915,185.08,185.02,8.09480391]
[1736829587267,4.9915,185.08,185.05,8.09480391]
[1736829587468,13.55480391,185.12,185.05,8.09480391]
[1736829587665,18.65343315,185.12,185.05,8.09480391]
[1736829588172,13.55480391,185.12,185.07,8.09480391]
[1736829588373,8.09480391,185.12,185.07,8.09480391]
[1736829589173,3.2323,185.13,185.07,8.09480391]
[1736829589872,3.2323,185.13,185.09,8.09480391]
[1736829589873,2.7024,185.11,185.09,8.09480391]
[1736829592678,2.7024,185.1,185.09,8.09480391]
[1736829607891,11.32710391,185.13,185.0,4.7391]
[1736829607892,8.09480391,185.11,185.0,4.7391]
[1736829608087,8.09480391,185.11,185.06,8.09480391]
[1736829608484,2.7027,185.08,185.06,8.09480391]
[1736829616100,2.7024,185.1,185.06,8.09480391]
[1736829616295,2.7024,185.1,185.09,8.09480391]
[1736829618893,3.1751,185.2,185.09,8.09480391]
[1736829619094,8.09480391,185.17,185.11,8.09480391]
[1736829620093,2.7021,185.12,185.11,8.09480391]
[1736829620489,1.6781,185.19,185.11,8.09480391]
[1736829620696,188.49593273,185.25,185.18,8.09480391]
[1736829620992,150.79674618,185.23,185.21,8.09480391]
[1736829621197,2.7007,185.22,185.17,2.7013]
[1736829621393,150.79674618,185.23,185.19,8.09480391]
[1736829621894,150.79674618,185.23,185.21,8.09480391]
[1736829622098,2.7007,185.22,185.21,8.09480391]
[1736829622298,2.7007,185.22,185.17,2.7014]
[1736829622299,2.7007,185.22,185.2,8.09480391]
[1736829623104,63.20782476,185.27,185.2,8.09480391]
[1736829623295,2.7005,185.23,185.2,8.09480391]
[1736829623602,8.09480391,185.26,185.2,8.09480391]
[1736829624195,63.20782476,185.27,185.24,8.09480391]
[1736829624901,2.7001,185.26,185.24,8.09480391]
[1736829625098,63.20782476,185.27,185.24,8.09480391]
[1736829627705,63.20782476,185.27,185.26,8.09480391]
[1736829630109,63.20782476,185.27,185.2,2.7009]
[1736829630406,2.7002,185.26,185.24,8.09480391]
[1736829630607,63.20782476,185.27,185.24,8.09480391]
[1736829630809,2.7002,185.25,185.24,8.09480391]
[1736829631703,71.30262867,185.27,185.22,8.09480391]
[1736829631908,2.7005,185.24,185.22,8.09480391]
[1736829632109,63.20782476,185.27,185.22,8.09480391]
[1736829632310,2.7002,185.26,185.22,8.09480391]
[1736829632810,2.7002,185.26,185.24,8.09480391]
[1736829634901,2.7002,185.25,185.24,8.09480391]
[1736829639219,2.7007,185.22,185.21,8.09480391]
[1736829641015,8.09480391,185.26,185.21,8.09480391]
[1736829641318,2.7005,185.23,185.21,8.09480391]
[1736829643723,8.09480391,185.24,185.18,8.09480391]
[1736829644223,8.09480391,185.22,185.18,8.09480391]
[1736829644917,2.7013,185.18,185.17,49.15097699]
[1736829646022,2.7011,185.19,185.17,49.15097699]
[1736829646321,2.7011,185.19,185.18,8.09480391]
[1736829647026,8.09480391,185.24,185.18,8.09480391]
[1736829647227,2.7008,185.22,185.21,8.09480391]
[1736829647430,71.30262867,185.27,185.21,8.09480391]
[1736829647823,2.7006,185.23,185.21,8.09480391]
[1736829648926,2.7004,185.25,185.21,8.09480391]
[1736829649126,2.7004,185.25,185.23,8.09480391]
[1736829652826,2.7004,185.24,185.23,8.09480391]
[1736829658841,71.30262867,185.27,185.18,1.6016]
[1736829659139,71.30262867,185.27,185.2,8.09480391]
[1736829660138,2.7009,185.21,185.2,8.09480391]
[1736829661143,8.09480391,185.25,185.17,49.15097699]
[1736829661444,2.7011,185.2,185.19,8.09480391]
[1736829663046,2.7008,185.22,185.19,8.09480391]
[1736829663346,2.7008,185.22,185.21,8.09480391]
[1736829665241,2.7005,185.23,185.21,8.09480391]
[1736829666053,2.7011,185.19,185.16,7.36786166]
[1736829666647,2.7013,185.18,185.16,15.46266557]
[1736829668448,10.79540391,185.23,185.16,15.46266557]
[1736829668749,8.09480391,185.23,185.18,8.09480391]
[1736829669144,2.7009,185.21,185.18,8.09480391]
[1736829669841,15.13730391,185.25,185.2,8.09480391]
[1736829670045,2.7006,185.23,185.2,8.09480391]
[1736829670739,2.7007,185.22,185.2,8.09480391]
[1736829675353,8.09480391,185.23,185.16,15.46266557]
[1736829675550,8.09480391,185.21,185.16,15.46266557]
[1736829675948,2.7012,185.19,185.16,15.46266557]
[1736829676654,8.09480391,185.21,185.16,15.46266557]
[1736829676953,2.7012,185.19,185.16,15.46266557]
[1736829678253,2.7012,185.19,185.09,8.6869]
[1736829678254,2.7016,185.16,185.09,8.6869]
[1736829678451,2.7016,185.16,185.14,8.09480391]
[1736829679055,2.7014,185.17,185.14,8.09480391]
[1736829682058,8.09480391,185.21,185.14,8.09480391]
[1736829682253,2.701,185.2,185.16,10.79630391]
[1736829683152,2.7011,185.19,185.16,8.09480391]
[1736829684557,8.09480391,185.23,185.18,8.09480391]
[1736829684764,1.5938,185.25,185.2,8.09480391]
[1736829684955,8.09480391,185.23,185.18,8.09480391]
[1736829685154,2.7009,185.21,185.18,8.09480391]
[1736829685454,8.09480391,185.23,185.18,8.09480391]
[1736829685660,2.701,185.2,185.18,8.09480391]
[1736829685958,2.701,185.2,185.16,8.09480391]
[1736829686160,8.09480391,185.21,185.16,8.09480391]
[1736829687162,2.7012,185.19,185.16,8.09480391]
[1736829687856,2.701,185.2,185.18,8.09480391]
[1736829688058,8.09480391,185.24,185.18,8.09480391]
[1736829688759,2.7008,185.21,185.13,2.7019]
[1736829688962,8.09480391,185.24,185.09,3.3538]
[1736829688963,8.09480391,185.24,185.17,8.09480391]
[1736829689262,8.09480391,185.22,185.17,8.09480391]
[1736829691163,2.7011,185.19,185.17,8.09480391]
[1736829692365,2.7011,185.19,185.15,10.79650391]
[1736829692560,1.5938,185.25,185.15,8.09480391]
[1736829692760,2.7013,185.18,185.15,8.09480391]
[1736829693865,2.7017,185.16,185.09,3.3538]
[1736829694068,2.7017,185.16,185.13,8.09480391]
[1736829694567,2.7014,185.18,185.15,8.09480391]
[1736829698464,2.7013,185.18,185.15,8.09480391]
[1736829706373,192.5938,185.25,185.17,8.09480391]
[1736829706673,7.0338,185.25,185.19,8.09480391]
[1736829707068,1.5938,185.25,185.19,8.09480391]
[1736829708174,2.7008,185.22,185.19,8.09480391]
[1736829708372,1.5938,185.25,185.19,8.09480391]
[1736829708976,9.68860391,185.25,185.19,8.09480391]
[1736829709675,1.5938,185.25,185.19,8.09480391]
[1736829709876,2.7008,185.21,185.19,8.09480391]
[1736829718090,2.7006,185.23,185.19,10.79580391]
[1736829718388,2.7006,185.23,185.21,8.09480391]
[1736829718987,2.7007,185.22,185.21,8.09480391]
[1736829719389,2.7007,185.22,185.19,8.09480391]
[1736829740601,2.7007,185.22,185.19,10.79590391]
[1736829746208,2.701,185.2,185.16,2.7015]
[1736829746407,2.701,185.2,185.16,10.79630391]
[1736829746608,2.701,185.2,185.16,8.09480391]
[1736829746908,2.7009,185.21,185.17,2.7014]
[1736829748810,3.2597,185.26,185.18,8.09480391]
[1736829749010,2.7006,185.23,185.19,2.7011]
[1736829751017,2.7006,185.23,185.19,10.79590391]
[1736829753318,8.09480391,185.23,185.13,7.36893243]
[1736829753517,2.7013,185.18,185.14,10.79660391]
[1736829754710,8.09480391,185.19,185.13,7.36893243]
[1736829754919,2.7016,185.16,185.13,7.36893243]
[1736829758316,2.7018,185.14,185.13,7.36893243]
[1736829760116,2.7022,185.12,185.09,8.09480391]
[1736829764826,1.5696,185.18,185.09,8.09480391]
[1736829765018,2.7018,185.15,185.11,8.09480391]
[1736829766219,2.7018,185.15,185.11,10.79700391]
[1736829766724,9.66440391,185.18,185.13,8.09480391]
[1736829767024,8.09480391,185.22,185.17,8.09480391]
[1736829769124,2.7013,185.18,185.17,8.09480391]
[1736829771119,2.7013,185.18,185.1,4.7159]
[1736829771326,2.7017,185.16,185.13,8.09480391]
[1736829771516,8.09480391,185.18,185.13,8.09480391]
[1736829771720,8.09480391,185.16,185.11,8.09480391]
[1736829772127,2.702,185.14,185.11,8.09480391]
[1736829772920,2.7019,185.14,185.11,8.09480391]
[1736829773528,2.702,185.13,185.11,8.09480391]
[1736829777828,8.09480391,185.16,185.11,8.09480391]
[1736829778030,2.7021,185.12,185.11,8.09480391]
[1736829778829,2.7021,185.12,185.11,8.02495113]
[1736829780631,2.7026,185.1,185.06,95.3629]
[1736829780933,8.09480391,185.14,185.07,8.09480391]
[1736829781527,8.09480391,185.12,185.06,92.66]
[1736829781733,8.09480391,185.12,185.07,8.09480391]
[1736829782131,2.7027,185.09,185.06,92.66]
[1736829782338,8.09480391,185.1,185.05,49.1798805]
[1736829782532,8.09480391,185.1,185.05,57.27468441]
[1736829782933,2.7029,185.07,185.05,8.09480391]
[1736829783934,2.7033,185.05,185.03,8.09480391]
[1736829784139,8.09480391,185.08,184.89,155.29108049]
[1736829784344,8.09480391,185.08,185.01,8.09480391]
[1736829784539,2.7036,185.02,184.96,13.92626271]
[1736829784739,2.7036,185.02,185.0,8.09480391]
[1736829785241,2.7037,185.01,185.0,8.09480391]
[1736829785638,8.09480391,185.04,184.98,8.09480391]
[1736829785937,2.7041,184.99,184.96,18.70606662]
[1736829786837,8.09480391,185.02,184.96,10.61126271]
[1736829787039,5.44,185.03,184.96,10.61126271]
[1736829787040,2.7043,184.97,184.96,10.61126271]
[1736829789836,8.09480391,185.0,184.94,8.09480391]
[1736829791141,2.7042,184.98,184.94,10.79960391]
[1736829792144,2.7037,185.01,184.96,10.79930391]
[1736829792345,5.44,185.03,184.99,8.09480391]
[1736829792643,5.44,185.03,184.9,3.2812]
[1736829792644,2.704,184.99,184.94,2.7046]
[1736829792844,8.09480391,185.0,184.95,8.09480391]
[1736829794245,2.7045,184.96,184.95,8.09480391]
[1736829803546,8.09480391,185.0,184.95,8.09480391]
[1736829803845,2.7043,184.98,184.95,8.09480391]
[1736829804950,86.93048176,185.06,184.97,8.09480391]
[1736829805148,8.09480391,185.05,184.99,8.09480391]
[1736829805357,8.09480391,185.05,185.01,8.09480391]
[1736829806556,8.09480391,185.05,184.99,8.09480391]
[1736829807154,2.7036,185.02,184.99,8.09480391]
[1736829807355,8.09480391,185.03,184.97,8.09480391]
[1736829808254,2.7039,185.0,184.97,8.09480391]
[1736829809852,8.09480391,185.01,184.9,3.2812]
[1736829810155,86.93048176,185.06,184.93,8.09480391]
[1736829810156,8.09480391,184.99,184.93,8.09480391]
[1736829811153,2.7044,184.97,184.93,8.09480391]
[1736829812256,5.46,185.04,184.95,8.09480391]
[1736829812457,8.09480391,185.02,184.97,8.09480391]
[1736829813057,2.7039,185.0,184.97,8.09480391]
[1736829813256,2.7039,185.0,184.99,8.09480391]
[1736829813561,2.7038,185.01,184.99,8.09480391]
[1736829813755,13.55480391,185.04,184.99,8.09480391]
[1736829814157,2.7037,185.02,184.99,8.09480391]
[1736829815262,2.7037,185.01,184.99,8.09480391]
[1736829817159,95.02528567,185.06,184.99,8.09480391]
[1736829817359,2.7035,185.03,184.99,10.79880391]
[1736829817762,2.7035,185.03,185.01,8.09480391]
[1736829818066,2.7031,185.06,185.01,8.09480391]
[1736829818356,2.7031,185.06,185.04,8.09480391]
[1736829818560,2.7029,185.08,185.04,8.09480391]
[1736829818762,2.7029,185.08,185.06,8.09480391]
[1736829819359,2.7029,185.07,185.04,8.09480391]
[1736829819764,8.09480391,185.1,185.04,8.09480391]
[1736829820265,2.7033,185.04,184.95,7.49236612]
[1736829820564,8.09480391,185.1,185.03,8.09480391]
[1736829821664,2.7031,185.06,185.03,8.09480391]
[1736829822564,8.09480391,185.08,185.03,8.09480391]
[1736829822760,8.09480391,185.08,185.01,8.09480391]
[1736829822959,8.09480391,185.06,185.01,8.09480391]
[1736829823164,2.7038,185.01,184.97,6.0361]
[1736829823362,2.7038,185.01,184.99,8.09480391]
[1736829829168,8.09480391,185.04,184.97,11.42660391]
[1736829829368,8.09480391,185.04,184.97,8.09480391]
[1736829829869,2.7041,184.99,184.97,8.09480391]
[1736829832569,2.7039,185.0,184.97,8.09480391]
[1736829833770,2.7041,184.99,184.97,8.09480391]
[1736829835173,8.09480391,185.06,184.97,8.09480391]
[1736829835474,8.09480391,185.06,185.0,8.09480391]
[1736829836774,2.7037,185.02,185.0,8.09480391]
[1736829837275,2.7037,185.01,185.0,8.09480391]
[1736829837876,8.09480391,185.04,184.98,8.09480391]
[1736829838074,2.704,185.0,184.98,8.09480391]
[1736829844077,8.09480391,185.04,184.98,8.09480391]
[1736829844877,2.7037,185.02,185.0,8.09480391]
[1736829845076,5.44,185.07,185.0,8.09480391]
[1736829845277,13.53480391,185.07,185.0,8.09480391]
[1736829846171,2.7035,185.03,185.0,8.09480391]
[1736829847976,2.7033,185.05,185.02,8.09480391]
[1736829848181,8.09480391,185.09,185.02,8.09480391]
[1736829848978,2.703,185.07,185.02,10.79830391]
[1736829849381,2.703,185.07,185.04,8.09480391]
[1736829849778,2.703,185.07,185.06,8.09480391]
[1736829850181,2.703,185.06,185.04,8.09480391]
[1736829852077,2.7034,185.04,185.01,8.09480391]
[1736829852281,8.09480391,185.07,185.01,8.09480391]
[1736829852981,2.7034,185.04,185.01,8.09480391]
[1736829857884,8.09480391,185.07,185.01,8.09480391]
[1736829858091,2.7035,185.03,185.01,8.09480391]
[1736829859488,3.1832,185.1,185.01,8.09480391]
[1736829859489,2.7036,185.02,185.01,8.09480391]
[1736829860185,2.7036,185.02,184.98,7.6982]
[1736829860385,2.7036,185.02,185.0,8.09480391]
[1736829867085,2.7032,185.05,185.01,2.7036]
[1736829867288,2.7032,185.05,185.04,8.09480391]
[1736829870089,8.09480391,185.08,185.02,8.09480391]
[1736829870090,2.7034,185.04,185.02,8.09480391]
[1736829874093,2.7034,185.03,185.02,8.09480391]
[1736829874396,8.6232,185.1,184.98,4.9941]
[1736829874397,8.09480391,185.06,185.0,8.09480391]
[1736829874593,8.09480391,185.06,184.99,8.09480391]
[1736829874787,8.09480391,185.06,184.98,4.9941]
[1736829874994,2.7033,185.04,184.99,8.09480391]
[1736829875195,8.09480391,185.06,184.99,8.09480391]
[1736829877100,2.7037,185.02,184.99,8.09480391]
[1736829878400,2.7039,185.0,184.96,2.7044]
[1736829878600,2.7039,185.0,184.99,8.09480391]
[1736829884613,2.7037,185.02,184.99,8.09480391]
[1736829888018,2.7037,185.02,184.99,10.79880391]
[1736829889615,2.7037,185.02,185.01,8.09480391]
[1736829894732,3.1832,185.1,185.01,8.09480391]
[1736829894919,8.09480391,185.09,185.03,8.09480391]
[1736829895419,2.7032,185.05,185.03,8.09480391]
[1736829895827,8.09480391,185.09,185.03,8.09480391]
[1736829898229,2.7032,185.05,185.03,8.09480391]
[1736829900828,2.7033,185.04,185.03,8.09480391]
[1736829904031,2.703,185.07,185.03,8.09480391]
[1736829904226,1.5712,185.11,185.05,8.09480391]
[1736829904426,73.26864707,185.16,185.09,8.09480391]
[1736829904630,73.26864707,185.16,185.02,5.44]
[1736829904631,2.7021,185.13,185.11,8.09480391]
[1736829905824,73.26864707,185.16,185.11,8.09480391]
[1736829906027,2.7021,185.12,185.11,8.09480391]
[1736829907030,2.7024,185.1,185.07,8.09480391]
[1736829907632,8.09480391,185.12,185.07,8.09480391]
[1736829907834,2.7026,185.09,185.07,8.09480391]
[1736829908036,8.09480391,185.12,185.03,4.892]
[1736829908333,2.7027,185.09,185.06,8.09480391]
[1736829912143,2.7027,185.09,185.08,8.09480391]
[1736829912336,2.7023,185.11,185.08,8.09480391]
[1736829913141,2.7023,185.11,185.09,8.09480391]
[1736829914744,2.7016,185.16,185.09,10.79730391]
[1736829914942,3.1775,185.18,185.13,8.09480391]
[1736829915136,1.5767,185.18,185.13,8.09480391]
[1736829915536,9.67150391,185.18,185.13,8.09480391]
[1736829916341,8.09480391,185.18,185.13,8.09480391]
[1736829916542,2.7016,185.16,185.13,8.09480391]
[1736829917245,2.7013,185.18,185.15,8.09480391]
[1736829918039,8.09480391,185.22,185.17,8.09480391]
[1736829918244,2.7011,185.19,185.17,8.09480391]
[1736829920040,2.7013,185.18,185.17,8.09480391]
[1736829920343,2.7013,185.18,185.14,2.7018]
[1736829920534,7.094,185.24,185.14,8.09480391]
[1736829920535,8.09480391,185.21,185.14,8.09480391]
[1736829921438,2.7016,185.16,185.14,8.09480391]
[1736829923549,2.7018,185.15,185.1,7.6138]
[1736829923748,2.7018,185.15,185.14,8.09480391]
[1736829925852,8.09480391,185.19,185.14,8.09480391]
[1736829926151,7.094,185.24,185.14,8.09480391]
[1736829926152,8.09480391,185.21,185.14,8.09480391]
[1736829926549,2.7014,185.18,185.14,10.79660391]
[1736829930047,8.09480391,185.21,185.14,10.79660391]
[1736829930242,2.7014,185.17,185.14,8.09480391]
[1736829932655,8.09480391,185.19,185.1,4.9115]
[1736829932955,8.09480391,185.17,185.11,8.09480391]
[1736829933448,8.09480391,185.13,185.05,97.5178]
[1736829933646,8.09480391,185.13,185.06,8.09480391]
[1736829934051,2.7026,185.09,185.06,8.09480391]
[1736829936956,2.7026,185.09,185.05,95.4231]
[1736829937256,2.7026,185.09,185.07,8.09480391]
[1736829937456,2.7026,185.09,185.05,95.4231]
[1736829937656,2.7026,185.09,185.07,8.09480391]
[1736829940455,2.7027,185.08,185.07,8.09480391]
[1736829940759,8.09480391,185.09,185.03,8.09480391]
[1736829941252,8.09480391,185.07,185.01,5.21022524]
[1736829941457,8.09480391,185.07,185.01,13.30502915]
[1736829941659,2.7033,185.04,185.01,13.30502915]
[1736829942161,8.09480391,185.05,184.96,4.9162]
[1736829942363,8.09480391,185.05,184.99,8.09480391]
[1736829942960,8.09480391,185.03,184.97,8.09480391]
[1736829943166,8.09480391,185.03,184.96,4.9162]
[1736829943461,2.7039,185.01,184.97,8.09480391]
[1736829944564,2.7039,185.01,184.96,7.6206]
[1736829944763,2.7039,185.01,184.98,8.09480391]
[1736829945163,2.7039,185.01,184.96,7.6206]
[1736829945564,2.7039,185.01,184.98,8.09480391]
[1736829947063,2.7039,185.0,184.98,8.09480391]
[1736829948261,8.09480391,185.03,184.98,8.09480391]
[1736829948468,2.7037,185.02,184.98,8.09480391]
[1736829949167,2.7034,185.04,185.0,8.09480391]
[1736829949469,8.09480391,185.08,185.02,8.09480391]
[1736829949666,2.7034,185.03,185.0,8.09480391]
[1736829955462,8.09480391,185.06,185.0,8.09480391]
[1736829955669,2.7033,185.05,185.0,10.79860391]
[1736829956472,8.09480391,185.06,185.0,10.79860391]
[1736829956772,2.7033,185.04,185.0,10.79860391]
[1736829958667,2.7033,185.04,185.02,8.09480391]
[1736829962468,8.09480391,185.08,185.02,8.09480391]
[1736829963871,2.7031,185.06,185.02,8.09480391]
[1736829964765,8.09480391,185.08,185.02,8.09480391]
[1736829964975,2.7032,185.05,185.02,8.09480391]
[1736829966890,8.09480391,185.08,185.01,2.7037]
[1736829966891,8.09480391,185.06,185.01,8.09480391]
[1736829967173,8.09480391,185.06,184.99,8.09480391]
[1736829968074,8.09480391,185.08,185.01,8.09480391]
[1736829968273,2.7033,185.05,185.01,10.79850391]
[1736829969571,2.703,185.06,185.01,2.7036]
[1736829969779,2.703,185.06,185.02,8.09480391]
[1736829971077,2.703,185.06,185.03,2.7034]
[1736829971378,8.09480391,185.05,184.96,4.9162]
[1736829971579,8.09480391,185.05,184.99,8.09480391]
[1736829971980,2.7037,185.02,184.98,2.7041]
[1736829972680,2.7037,185.02,184.99,8.09480391]
[1736829972981,8.09480391,185.08,185.01,8.09480391]
[1736829973277,8.09480391,185.1,185.04,8.09480391]
[1736829973580,2.7029,185.07,185.04,8.09480391]
[1736829978985,191.0,185.14,185.04,8.09480391]
[1736829979186,2.7026,185.09,185.06,8.09480391]
[1736829980282,8.09480391,185.12,185.06,8.09480391]
[1736829980687,2.7027,185.08,185.04,8.09480391]
[1736829981488,8.09480391,185.1,185.04,8.09480391]
[1736829981685,2.7031,185.06,185.02,8.09480391]
[1736829981990,8.09480391,185.08,185.02,8.09480391]
[1736829982192,2.7035,185.03,185.0,8.09480391]
[1736829985599,2.7036,185.02,184.98,2.7042]
[1736829985795,8.09480391,185.04,184.98,8.09480391]
[1736829985992,8.09480391,185.06,185.0,8.09480391]
[1736829986495,2.7033,185.05,185.0,8.09480391]
[1736829986794,13.53480391,185.07,185.0,8.09480391]
[1736829987292,2.7034,185.04,185.0,8.09480391]
[1736829988292,2.7034,185.04,185.02,8.09480391]
[1736829990996,2.7034,185.03,185.02,8.09480391]
[1736829993298,13.53480391,185.07,184.96,4.9162]
[1736829993494,2.7037,185.02,184.98,2.7041]
[1736829993700,2.7037,185.02,184.99,8.09480391]
[1736830003702,5.44,185.07,185.01,10.79850391]
[1736830004303,2.7036,185.03,185.01,8.09480391]
[1736830006508,8.09480391,185.06,185.01,8.09480391]
[1736830006706,2.7036,185.02,184.99,10.79870391]
[1736830008005,2.7036,185.02,184.99,8.09480391]
[1736830008606,2.7039,185.0,184.96,2.7044]
[1736830008807,2.7039,185.0,184.96,10.79920391]
[1736830009309,2.704,184.99,184.96,10.79920391]
[1736830010408,2.7036,185.03,184.98,8.09480391]
[1736830010608,2.7036,185.03,185.0,8.09480391]
[1736830019709,1.6065,185.06,185.0,8.09480391]
[1736830019915,2.7032,185.05,185.02,8.09480391]
[1736830020513,2.7033,185.04,185.02,8.09480391]
[1736830022410,13.53480391,185.07,185.0,10.79870391]
[1736830022614,2.7034,185.03,185.0,10.79870391]
[1736830022914,8.09480391,185.05,185.0,8.09480391]
[1736830023109,2.7037,185.02,184.98,2.704]
[1736830023316,2.7037,185.02,184.93,59.93892903]
[1736830023317,8.09480391,185.05,184.99,8.09480391]
[1736830024716,8.09480391,185.03,184.99,8.09480391]
[1736830025215,2.7039,185.01,184.99,8.09480391]
[1736830030619,2.7039,185.0,184.99,8.09480391]
[1736830034821,2.7039,185.0,184.96,2.7044]
[1736830035022,2.7039,185.0,184.97,8.09480391]
[1736830036624,8.09480391,185.04,184.97,8.09480391]
[1736830036625,8.09480391,185.02,184.97,8.09480391]
[1736830036827,2.7041,184.99,184.97,8.09480391]
[1736830038216,2.7041,184.99,184.96,2.7044]
[1736830038416,2.7041,184.99,184.97,8.09480391]
[1736830040527,2.7039,185.0,184.97,8.09480391]
[1736830040726,2.7039,185.0,184.96,2.7044]
[1736830040927,2.7039,185.0,184.97,8.09480391]
[1736830043028,2.7037,185.02,184.99,8.09480391]
[1736830043328,8.09480391,185.04,184.99,8.09480391]
[1736830043529,2.7035,185.03,184.99,8.09480391]
[1736830043825,8.09480391,185.04,184.99,8.09480391]
[1736830044430,2.7038,185.01,184.99,8.09480391]
[1736830048429,2.7036,185.02,184.99,8.09480391]
[1736830061048,18.24550391,185.06,184.98,2.7041]
[1736830061353,2.7038,185.01,184.99,8.09480391]
[1736830075861,18.24550391,185.06,184.96,2.7043]
[1736830076064,2.7039,185.0,184.98,8.09480391]
[1736830079163,8.09480391,185.04,184.96,10.79910391]
[1736830079467,8.09480391,185.02,184.95,8.09480391]
[1736830079670,8.09480391,185.0,184.95,8.09480391]
[1736830079968,2.7042,184.98,184.94,2.7047]
[1736830080167,8.09480391,185.0,184.91,34.97951962]
[1736830080368,8.09480391,185.0,184.94,8.09480391]
[1736830081065,2.7045,184.96,184.94,8.09480391]
[1736830081567,8.09480391,185.0,184.94,8.09480391]
[1736830081767,2.7043,184.98,184.94,10.79950391]
[1736830081971,2.7043,184.98,184.96,8.09480391]
[1736830082263,8.09480391,185.0,184.96,8.09480391]
[1736830082463,2.704,184.99,184.96,8.09480391]
[1736830082664,8.09480391,185.02,184.96,8.09480391]
[1736830082966,2.7035,185.03,185.0,8.09480391]
[1736830084673,12.80550391,185.06,185.0,8.09480391]
[1736830084978,2.7036,185.02,185.0,8.09480391]
[1736830085362,64.76427839,185.11,185.0,8.09480391]
[1736830085669,13.2068606,185.1,185.06,8.09480391]
[1736830086268,8.09480391,185.1,185.06,8.09480391]
[1736830087270,8.09480391,185.1,185.04,8.09480391]
[1736830087969,2.703,185.07,185.04,8.09480391]
[1736830089870,8.09480391,185.1,185.04,8.09480391]
[1736830090069,2.7031,185.06,185.04,8.09480391]
[1736830093676,2.7031,185.06,185.02,2.7036]
[1736830093978,2.7031,185.06,185.04,8.09480391]
[1736830094978,8.09480391,185.08,185.02,8.09480391]
[1736830095276,8.09480391,185.06,185.0,8.09480391]
[1736830096181,2.7035,185.03,185.0,8.09480391]
[1736830097982,2.7037,185.02,184.97,5.9562]
[1736830098281,2.7037,185.02,184.99,8.09480391]
[1736830101781,8.09480391,185.06,185.01,8.09480391]
[1736830101982,2.7034,185.04,185.01,8.09480391]
[1736830103387,2.703,185.06,185.03,8.09480391]
[1736830103685,77.6368823,185.11,185.05,8.09480391]
[1736830104984,8.09480391,185.09,185.03,8.09480391]